Cogmind - Beta 13 @@@ ROGUE MODE // 2024.04.01 @ 05:48:39 Player: writers.room Result: Destroyed by S-10 Pest with Light Assault Rifle Performance ------------- Evolutions (0) 0 Regions Visited (1) 200 Robots Destroyed (16) 80 Value Destroyed (404) 404 Prototype IDs (0) 0 Alien Tech Used (0) 0 Bonus (0) 0 TOTAL SCORE: 684 Bonus ------- None Cogmind --------- Core Integrity 0/250 Matter 294/300 Energy 98/100 System Corruption 0% Temperature Cool (0) Movement Walking (120) Location -10/Materials Parts ------- > --- POWER (1) -------- (None) > --- PROPULSION (2) --- Aluminum Leg Aluminum Leg > --- UTILITY (2) ------ Small Storage Unit Structural Scanner > --- WEAPON (2) ------- Light Assault Rifle Light Assault Rifle > --- INVENTORY (8) ---- Ion Engine Ion Engine Ion Engine Aluminum Leg Aluminum Leg Aluminum Leg Aluminum Leg Peak State ------------ > --- POWER ------------ Ion Engine > --- PROPULSION ------- Wheel Compact Wheel > --- UTILITY ---------- Small Storage Unit Structural Scanner > --- WEAPON ----------- EM Pulse Gun Beam Cannon > --- INVENTORY -------- Ion Engine EM Pulse Gun EM Pulse Gun EM Pulse Gun [Rating: 7] Favorites ----------- Power Ion Engine Engine Ion Engine Propulsion Aluminum Leg Leg Aluminum Leg Wheel Wheel Utility Small Storage Unit Device Structural Scanner Storage Small Storage Unit Weapon EM Pulse Gun Energy Gun EM Pulse Gun Energy Cannon Beam Cannon Ballistic Gun Light Assault Rifle Build | -11 -10 ------- Run | Yrd Mat Slots Evolved . | . . Power . | . . Propulsion . | . . Utility . | . . Weapon . | . . Parts Attached 22 | 6 16 Power 2 | 1 1 Engine 2 | 1 1 Core . | . . Reactor . | . . Propulsion 6 | 2 4 Treads . | . . Leg 4 | . 4 Wheel 2 | 2 . Hover . | . . Flight . | . . Utility 3 | 1 2 Device 2 | . 2 Storage 1 | 1 . Processor . | . . Hackware . | . . Protection . | . . Artifact . | . . Weapon 11 | 2 9 Energy Gun 6 | 2 4 Energy Cannon 2 | . 2 Ballistic Gun 3 | . 3 Ballistic Cannon . | . . Launcher . | . . Special Weapon . | . . Impact Weapon . | . . Slashing Weapon . | . . Piercing Weapon . | . . Special Melee Weapon . | . . Unidentified Prototypes . | . . Parts Lost 8 | . 8 Power 1 | . 1 Propulsion 2 | . 2 Utility 1 | . 1 Weapon 4 | . 4 Highest Loss Streak 6 | . 6 To Critical Strikes . | . . Average Slot Usage (%) 94 | . 94 Engine 13 | . 13 Leg 13 | . 13 Wheel 13 | . 13 Device 12 | . 12 Storage 14 | . 14 Energy Gun 15 | . 15 Energy Cannon 1 | . 1 Ballistic Gun 9 | . 9 Naked Turns . | . . Heaviest Build 16 | 14 16 Greatest Support 26 | 26 26 Greatest Overweight (x) 4 | 1 4 Average Overweight (x) . | . . Largest Inventory Capacity 8 | 8 8 Average Capacity 7 | 7 8 Most Carried 7 | 3 7 Average Carried 3 | . 3 Final Capacity 8 | 8 8 Final Carried 7 | 1 7 Class Distribution -------------------- 67% | Mutant 32% | Scavenger-Mutant Dominant Class ---------------- Mutant | -10/Materials Resources | -11 -10 ----------- Run | Yrd Mat Matter Collected 414 | 210 204 Remotely . | . . Salvage Created 595 | 29 566 Parts 34 | 2 32 Haulers Intercepted . | . . Recyclers Shooed . | . . Parts Field Recycled . | . . Retrieved Matter . | . . Parts Self-Destructed . | . . Prevented . | . . Kills | -11 -10 ------- Run | Yrd Mat Combat Hostiles Destroyed 13 | . 13 Guns 9 | . 9 Cannons 4 | . 4 Classes Destroyed 5 | 1 4 Worker 1 | . 1 Tunneler 1 | 1 . Recycler 1 | . 1 Swarmer 3 | . 3 Grunt 10 | . 10 Best Kill Streak 6 | 1 6 Combat Bots Only 6 | . 6 Max Kills in Single Turn 1 | 1 1 Gunslinging . | . . Exploded . | . . Melee . | . . Uniques/NPCs Destroyed . | . . Combat | -11 -10 -------- Run | Yrd Mat Hostile Shots Fired 155 | . 155 Missed 49 | . 49 Damage Taken 1092 | . 1092 Core 251 | . 251 Absorbed by Shields . | . . Core Remaining (%) 100 | 100 . Volleys Fired 53 | 1 52 Largest 2 | 2 2 Hottest 90 | 90 80 Shots Fired 86 | 2 84 Gun 73 | 2 71 Cannon 13 | . 13 Launcher . | . . Special . | . . Kinetic 38 | . 38 Thermal 14 | 1 13 Explosive . | . . Electromagnetic 34 | 1 33 Robot Hit Streak 8 | 1 8 Robot Miss Streak 5 | . 5 Penetration Max . | . . Secondary Targets 4 | . 4 Max Gunslinging Chain 1 | . 1 Shots Hit Robots 42 | 1 41 Core Hits 25 | 1 24 Critical Kills 1 | . 1 Critical Parts Destroyed . | . . Critical Strikes 2 | . 2 Destroy 1 | . 1 Corrupt 1 | . 1 Melee Attacks . | . . Impact . | . . Slashing . | . . Piercing . | . . Sneak Attacks . | . . Combat Hostiles . | . . Follow-up Attacks . | . . Damage Inflicted 536 | 13 523 Guns 374 | 13 361 Cannons 160 | . 160 Explosions . | . . Melee . | . . Ramming 2 | . 2 Kinetic 136 | . 136 Thermal 160 | . 160 Explosive . | . . Electromagnetic 238 | 13 225 Impact . | . . Slashing . | . . Piercing . | . . Highest Corruption . | . . Average Corruption . | . . Corruption Purged . | . . Corruption Blocked . | . . Overload Shots . | . . Overflow Damage . | . . Projectiles . | . . Explosions . | . . Melee . | . . Knockbacks . | . . Impact . | . . Kinetic . | . . Secondary . | . . Self-Inflicted Damage . | . . Shots . | . . Rammed . | . . Targets Rammed 1 | . 1 Kicked 1 | . 1 Crushed . | . . Highest Temperature 418 | 30 418 Average Temperature 144 | 20 147 Received Heat Transfer 480 | . 480 Effects 1 | . 1 Damage (minor) 1 | . 1 Siege Activations . | . . Robots Corrupted . | . . Combat Hostiles . | . . Parts Fried . | . . Impact Corruptions . | . . Robots Melted . | . . Combat Hostiles . | . . Parts Melted 1 | . 1 Heat Transferred 333 | . 333 Parts Sabotaged . | . . Parts Stolen . | . . Parts Stripped . | . . Power Chain Reactions . | . . Alert | -11 -10 ------- Run | Yrd Mat Peak Influence 247 | 5 247 Initial 3 | . 3 Average 78 | . 86 Maximum Alert Level 1 | . 1 Low Security (%) 94 | 100 93 Level 1 5 | . 6 Level 2 . | . . Level 3 . | . . Level 4 . | . . Level 5 . | . . High Security . | . . Max Security . | . . Squads Dispatched 5 | . 5 Investigation 3 | . 3 Extermination . | . . Reinforcement 2 | . 2 Assault . | . . Garrison . | . . Intercept . | . . Searches Triggered . | . . Construction Impeded . | . . Haulers Reinforced . | . . Active Scanning Responses . | . . Cargo Convoy Interrupts . | . . Stealth | -11 -10 --------- Run | Yrd Mat Distress Signals 2 | . 2 Communications Jammed . | . . Distress Signals . | . . Times Spotted 25 | . 25 Peak Tracking Total 7 | . 7 Tactical Retreats . | . . Traps | -11 -10 ------- Run | Yrd Mat Traps Triggered 1 | . 1 Indirectly . | . . Trap Hack Attempts . | . . Triggered . | . . Disarmed . | . . Reprogrammed . | . . Reused . | . . Traps Extracted . | . . Installed . | . . Triggered . | . . Machines | -11 -10 ---------- Run | Yrd Mat Machines Disabled 2 | . 2 Max in Single Turn 1 | . 1 Machines Repaired . | . . Machines Dismantled . | . . Machines Sabotaged . | . . Overloaded Fab Kills . | . . Hacking | -11 -10 --------- Run | Yrd Mat Machines Accessed 3 | . 3 Terminals 1 | . 1 Fabricators . | . . Repair Stations . | . . Recycling Units 2 | . 2 Scanalyzers . | . . Garrison Access . | . . Total Hacks 4 | . 4 Successful 3 | . 3 Failed 1 | . 1 Catastrophic . | . . Database Lockouts . | . . Manual 3 | . 3 Terminals 1 | . 1 Fabricators . | . . Repair Stations . | . . Recycling Units 3 | . 3 Scanalyzers . | . . Garrison Access . | . . Terminal Hacks . | . . Fabricator Hacks . | . . Repair Station Hacks . | . . Recycling Unit Hacks . | . . Scanalyzer . | . . Garrison Access Hacks . | . . Unauthorized Hacks 3 | . 3 Terminals 1 | . 1 Botnet 1 | . 1 Fabricators . | . . Repair Stations . | . . Recycling Units 2 | . 2 Tunnel 2 | . 2 Scanalyzers . | . . Garrison Access . | . . Data Cores Recovered . | . . Used . | . . Hacking Detections 2 | . 2 Full Trace Events . | . . Feedback Events . | . . Feedback Blocked . | . . Robot Schematics Acquired . | . . Robots Built . | . . Authchips . | . . Time . | . . Total Robot Build Rating . | . . Part Schematics Acquired . | . . Parts Built . | . . Authchips . | . . Time . | . . Total Part Build Rating . | . . Parts Repaired . | . . Time . | . . Parts Recycled . | . . Recycled Matter . | . . Retrieved Matter . | . . Retrieved Components . | . . Parts Scanalyzed . | . . Part Schematics Acquired . | . . Parts Damaged . | . . Bothacking | -11 -10 ------------ Run | Yrd Mat Used RIF Installer . | . . Robots Hacked . | . . Non-combat . | . . Combat . | . . Robot Hacks Applied . | . . Relay Couplers Released . | . . Fabnet Peak Effective % . | . . Robots Rewired . | . . Allies Hacked . | . . Hacks Repelled . | . . Allies | -11 -10 -------- Run | Yrd Mat Total Allies . | . . Largest Group . | . . Highest-Rated Group . | . . Highest-Rated Ally . | . . Total Orders . | . . Ally Attacks . | . . Total Damage . | . . Kills . | . . Allies Corrupted . | . . Allies Melted . | . . Intel | -11 -10 ------- Run | Yrd Mat Robot Analysis Total . | . . Derelict Logs Recovered . | . . Drone Launches . | . . Drone Recoveries . | . . Exploration | -11 -10 ------------- Run | Yrd Mat Turns Passed 654 | 58 596 Spaces Moved 315 | 47 268 Core 12 | 9 3 Treads . | . . Legs 150 | . 150 Wheels 153 | 38 115 Hover . | . . Flight . | . . Fastest Speed 50 | 50 90 Average Speed 106 | 90 109 Slowest Speed 250 | 100 250 Overloaded Moves . | . . Propulsion Burnouts . | . . Robots Hopped . | . . Cave-ins Triggered . | . . Exploration Rate (%) 24 | 4 45 Regions Visited 1 Branch Regions . Pre-discovered Areas 2 | . 2 Known Exits Taken . | . . Unknown Exits Taken 1 | 1 . Scrap Searched . | . . Spaces Dug . | . . Terrain Destroyed . | . . Melee . | . . Projectile . | . . AOE . | . . Terrain Rammed . | . . Walls Destroyed . | . . Machines Disabled . | . . Actions | -11 -10 --------- Run | Yrd Mat Total 560 | 60 500 Wait 134 | . 134 Move 314 | 46 268 Hop . | . . Pick Up 27 | 7 20 Fast Attach . | . . Attach 21 | 6 15 Detach 3 | . 3 Swap 1 | . 1 Drop 6 | . 6 Fire 53 | 1 52 Melee . | . . Ram . | . . Kick 1 | . 1 Crush . | . . Escape Stasis . | . . Rewire . | . . Trap . | . . Miscellaneous . | . . Route ------- -11/Scrapyard -10/Materials History --------- Turn | Location | Event 12 | -11/Scrapyard | Discovered new exit (range 15) 59 | -11/Scrapyard | Entered Materials 309 | -10/Materials | Build established: Mutant 415 | -10/Materials | Core integrity fell below 50% 446 | -10/Materials | Core integrity fell below 20% 505 | -10/Materials | Lost 6 parts (2n1u3w) 655 | -10/Materials | Destroyed by S-10 Pest with Light Assault Rifle Last Messages --------------- 00548_ K-01 Serf collects debris. 00554_ G-34 Mercenary destroyed. 00556_ K-01 Serf collects debris. 00561_ Acquired 8 matter. 00561_ K-01 Serf cleans the Matter Filter. 00562_ K-01 Serf collects debris. 00563_ Acquired Ion Engine. 00564_ K-01 Serf collects debris. 00568_ ALERT: Hostiles spotted, dispatching reinforcements to Terminal M004. 00573_ K-01 Serf cleans the Matter Filter. 00584_ K-01 Serf destroyed. 00587_ Acquired 2 matter. 00601_ Kicked K-01 Serf. 00620_ T-07 Excavator is excavating. 00645_ W-16 Scout sends out distress signal. 00648_ Ion Engine destroyed. 00652_ S-10 Pest suffers critical hit (Destroy). 00652_ S-10 Pest destroyed. 00652_ Switching to secondary target: S-10 Pest. Map ----- +----------------------------------------------------+ | ?????????????????? ##??????????????????????? | | ??????????????????## ##??????????????????????? | | ????????????????#### ##??????????????????????? | | ????????????????#### ##??????????????????????? | | ????????????????## # ##??????????????????????? | | ?????????????????? ############????????????? | | # ???????????????? # ############????????????? | | # ???????????????### ## ##????????????? | | # ????????########## ## ##????????????? | | # ????????######### # ##????????????? | | ############ # """ ""##????????????? | | ############ + """ ""##????????????? | | =*%= % # """ T"##????????????? | | ################## # """ ""##????????????? | | ################### ## """ ""##????????????? | | ##??????????????### ## ##????????????? | | ##????##########?## #####+######????????????? | | # ????##########?## ##### ######????????????? | | # ????## ##### ##???????????????? | | # ????## "" ##### ##???????????????? | | # ????## Y" + # ##???????????????? | | # ????## "" # ######### ######????????????? | | # ????## # #########+######????????????? | | # ## # # ! ##????????????? | | % ##+#########+## # w ##????????????? | | % % # @ ##????????????? | | ! ! * % %k % ss ##????????????? | | %[% =%!% u=% % #% ##????????????? | | ############### # ##????????????? | | ###### # ################????????????? | | ##??## # ????????????? | | ##??## ] + ???????????????? | | + # "" ???????????????? | | ####### ? # "" ####### ???????????????? | | ####### ??? # "T #######+???????????????? | | ^?????## ????? # "" # # ???????????????? | | ?????## ?????? # "" #"" # ???????????????? | | ?????## # #"Y # ???????????????? | | ?????########### #"" # ???????????????? | | ?????## # # # ???????????????? | | ?????## """# # # ???????????????? | | ??????## ] """# """ + ! # ???????????????? | | ???????## """# """ # ! ##???????????????? | | ???????## # """ # ##???????????????? | | ???????########+## *""" # ##???????????????? | | ???????###### ! !"" # ##???????????????? | | ???????????## [%*!=! # ##???????????????? | | ???????????## [%=* ########???????????????? | | ???????????###+########[ ########???????????????? | | ??????????? #### ##?????????????????????? | +----------------------------------------------------+ Best States ------------- Heat Dissipation 25 Energy Generation 10 Energy Capacity 250 Matter Stores 300 Matter Capacity 300 Sight Range 16 Terrain Scan Density 10 Evasion (%) 55 Item Schematics ----------------- None Robot Schematics ------------------ None Fabricated ------------ Nothing Alien Tech Used ----------------- None Achievements -------------- None Challenges ------------ None Game ------ Seed BiomechanicalXenonStabilizer Manual? 0 Play Time 00:07:13 Cumulative 21.7 hours Start 2024.04.01 @ 05:42:48 End 2024.04.01 @ 05:48:39 Sessions 1 Manual Loads 0 Difficulty Rogue Special Mode None Game No. 56 Rogue 16 Adventurer 14 Explorer 26 Win Type - Total 0 Types 0/0/0/0/0/0/0/0/0 Lore% 16 Gallery% 25 Achievement% 23 Wizard Run 0 Options --------- Layout 0 ASCII 1 Keyboard 0 Movement Mouse Keybinds 0 Fullscreen 1 Font 18/SmallcapsGlow Map View 76x50 Zoom Use 0% Tactical HUD 1 Map Filters NONE Filters NONE Steam 1 RUN: 941888a8-cd10-4505-b71c-e38c5df248e1